bitfinex-derivatives/quotes_BTCF0:USTF0_20251009
["timestamp","ask_amount","ask_price","bid_price","bid_amount"]
[1760018495284,0.02963,122220.0,122210.0,0.91257258]
[1760018495588,0.39043,122220.0,122210.0,0.97126815]
[1760018496486,0.02963,122220.0,122210.0,0.97110815]
[1760018496792,0.02963,122220.0,122210.0,0.98573717]
[1760018498886,0.39043,122220.0,122210.0,0.13854357]
[1760018499082,0.4722169,122220.0,122210.0,0.14701258]
[1760018499284,0.39043,122220.0,122210.0,0.91165258]
[1760018499681,0.39043,122220.0,122210.0,0.14701258]
[1760018499981,0.02963,122220.0,122210.0,0.98477717]
[1760018500485,0.03014,122230.0,122220.0,0.0817869]
[1760018500690,0.03014,122230.0,122220.0,0.78202779]
[1760018500885,1e-07,122230.0,122220.0,1.94646779]
[1760018501199,0.02963,122250.0,122240.0,0.0817735]
[1760018501488,0.02963,122250.0,122240.0,1.28804848]
[1760018501888,0.02744,122260.0,122250.0,0.0817668]
[1760018502186,0.02744,122260.0,122250.0,0.52360178]
[1760018502486,0.8700001,122260.0,122250.0,0.17570863]
[1760018502683,0.80944099,122260.0,122250.0,0.13197145]
[1760018502886,0.1092068,122250.0,122240.0,0.10239409]
[1760018503111,0.1092135,122240.0,122230.0,0.15509454]
[1760018503288,0.4700135,122240.0,122230.0,0.07331454]
[1760018503486,0.4700135,122240.0,122230.0,0.05865422]
[1760018503686,0.38824,122240.0,122230.0,0.90495442]
[1760018503888,0.02744,122240.0,122230.0,0.1404328]
[1760018504093,0.02744,122240.0,122230.0,1.25969563]
[1760018504491,0.02744,122240.0,122230.0,0.15509474]
[1760018504988,0.02744,122240.0,122230.0,0.92045474]
[1760018505387,0.02744,122250.0,122240.0,0.0817735]
[1760018505586,0.02744,122250.0,122240.0,1.62048893]
[1760018505792,0.02744,122250.0,122240.0,0.0817735]
[1760018505993,0.4700068,122250.0,122240.0,0.15505887]
[1760018506195,1.20944769,122250.0,122240.0,0.7654]
[1760018506392,1.12768089,122250.0,122240.0,0.90579477]
[1760018506586,0.02744,122250.0,122240.0,0.90579477]
[1760018506789,0.02744,122250.0,122240.0,0.4425735]
[1760018507098,0.02844,122260.0,122250.0,0.0817668]
[1760018507298,0.02744,122260.0,122250.0,0.15500772]
[1760018507497,0.02744,122260.0,122250.0,0.92064772]
[1760018507794,0.02744,122260.0,122250.0,0.8474068]
[1760018507993,0.02744,122260.0,122250.0,0.92048532]
[1760018507994,0.38824,122260.0,122250.0,0.92048532]
[1760018508194,0.02744,122260.0,122250.0,0.92048532]
[1760018508495,0.001,122260.0,122250.0,1.94748769]
[1760018508792,0.001,122260.0,122250.0,0.94496089]
[1760018509000,0.001,122260.0,122250.0,2.04980178]
[1760018509189,0.001,122260.0,122250.0,1.71036089]
[1760018509399,0.001,122260.0,122250.0,1.6079668]
[1760018509595,0.02936,122260.0,122250.0,0.8425668]
[1760018509796,0.02936,122260.0,122250.0,1.6078868]
[1760018510324,0.02936,122260.0,122250.0,0.8425668]
[1760018510494,0.001,122260.0,122250.0,1.6077668]
[1760018510695,0.001,122260.0,122250.0,1.18200769]
[1760018510896,0.02836,122280.0,122270.0,0.0817535]
[1760018511096,0.02836,122280.0,122270.0,0.91977841]
[1760018511398,0.02836,122280.0,122270.0,0.8466335]
[1760018512099,0.02936,122280.0,122270.0,0.8466335]
[1760018512695,0.02936,122280.0,122270.0,2.0196193]
[1760018513001,0.001,122280.0,122270.0,1.94647439]
[1760018513302,0.001,122280.0,122270.0,1.34818252]
[1760018513496,0.001,122280.0,122270.0,2.11274252]
[1760018513998,0.001,122280.0,122270.0,1.34818252]
[1760018514196,0.001,122280.0,122270.0,2.11262252]
[1760018514398,0.02836,122300.0,122290.0,0.0817401]
[1760018514592,0.38916,122310.0,122300.0,0.0817334]
[1760018514800,0.38916,122310.0,122300.0,0.14014473]
[1760018515503,0.38916,122310.0,122300.0,0.90450473]
[1760018515701,0.38916,122310.0,122300.0,1.24394562]
[1760018515905,0.38916,122320.0,122310.0,0.0817267]
[1760018516106,0.38916,122320.0,122310.0,0.4795506]
[1760018516303,0.38916,122320.0,122310.0,0.42116759]
[1760018516500,0.51802,122320.0,122310.0,0.06389753]
[1760018516808,0.51802,122320.0,122310.0,0.7642]
[1760018517007,0.02836,122300.0,122290.0,0.50092211]
[1760018517206,0.5180334,122300.0,122290.0,0.05835274]
[1760018517525,0.1572334,122300.0,122290.0,0.14009284]
[1760018517714,0.5180334,122300.0,122290.0,0.82251274]
[1760018518011,0.1572401,122290.0,122280.0,0.05835274]
[1760018518210,0.02836,122280.0,122270.0,0.56469558]
[1760018518406,0.02836,122280.0,122270.0,1.32885558]
[1760018518608,0.02836,122280.0,122270.0,1.32886028]
[1760018518804,0.02836,122280.0,122270.0,0.56470028]
[1760018519007,0.0755,122280.0,122270.0,0.56470028]
[1760018519318,0.02836,122280.0,122270.0,1.32882028]
[1760018519614,0.02836,122280.0,122270.0,1.32874028]
[1760018519812,0.1101068,122280.0,122270.0,0.56470028]
[1760018520113,0.1572468,122280.0,122270.0,1.27122754]
[1760018520317,0.0755,122280.0,122270.0,0.50734754]
[1760018520819,0.9180468,122280.0,122270.0,0.82855404]
[1760018521019,0.9180468,122280.0,122270.0,0.82755404]
[1760018521220,0.1572601,122260.0,122250.0,6.764e-05]
[1760018521418,0.5180601,122260.0,122250.0,0.76374764]
[1760018521613,0.5180601,122260.0,122250.0,0.05845295]
[1760018521817,0.4363,122260.0,122250.0,0.14021975]
[1760018522015,0.4363,122260.0,122250.0,0.96952158]
[1760018522016,0.02836,122260.0,122250.0,0.96952158]
[1760018522216,0.5180601,122260.0,122250.0,0.12343478]
[1760018522620,0.9180601,122260.0,122250.0,0.12343478]
[1760018522816,0.9180601,122260.0,122250.0,0.88755478]
[1760018523010,0.9180601,122260.0,122250.0,0.12343478]
[1760018523011,1.25750099,122260.0,122250.0,0.12343478]
[1760018523217,1.25750099,122260.0,122250.0,0.74515478]
[1760018523416,0.8363,122260.0,122250.0,0.74515478]
[1760018523619,0.9180601,122260.0,122250.0,0.82349295]
[1760018525315,0.9180601,122260.0,122250.0,0.05945295]
[1760018525622,0.9180601,122260.0,122250.0,0.82313295]
[1760018525918,0.9180601,122260.0,122250.0,0.82305295]
[1760018526122,1.25750099,122260.0,122250.0,0.82293295]
[1760018526618,0.9180601,122260.0,122250.0,0.82293295]
[1760018526919,0.8363,122260.0,122250.0,0.90457975]
[1760018527119,0.4363,122260.0,122250.0,0.82281295]
[1760018527321,0.5180601,122260.0,122250.0,0.82269295]
[1760018527833,0.5180601,122260.0,122250.0,0.82261295]
[1760018528015,0.4363,122260.0,122250.0,0.82261295]
[1760018528220,0.5180601,122260.0,122250.0,0.90425975]
[1760018528926,0.4363,122260.0,122250.0,0.84587444]
[1760018529220,0.5180601,122260.0,122250.0,0.84587444]
[1760018529921,0.4363,122260.0,122250.0,0.90412233]
[1760018530116,0.0755,122260.0,122250.0,0.50220233]
[1760018530325,0.02836,122260.0,122250.0,0.15584902]
[1760018530623,0.02836,122260.0,122250.0,0.91852902]
[1760018530823,0.02836,122270.0,122260.0,0.0817601]
[1760018531022,0.02836,122280.0,122270.0,0.0817535]
[1760018531219,0.02836,122280.0,122270.0,0.14034652]
[1760018531523,0.02836,122280.0,122270.0,0.0817535]
[1760018531936,0.02836,122280.0,122270.0,0.8445535]
[1760018532325,0.02836,122280.0,122270.0,1.2053535]
[1760018532517,0.02836,122280.0,122270.0,0.0817535]
[1760018532826,0.1570035,122270.0,122260.0,0.07301458]
[1760018533013,0.5178035,122270.0,122260.0,0.05860193]
[1760018533214,0.5178035,122270.0,122260.0,0.82124193]
[1760018533422,0.5178035,122270.0,122260.0,0.05861727]
[1760018533619,0.02831,122270.0,122260.0,0.90289737]
[1760018533819,0.02831,122270.0,122260.0,0.8442001]
[1760018534022,0.02831,122270.0,122260.0,0.78200099]
[1760018534324,0.02836,122280.0,122270.0,0.0817534]
[1760018534523,0.02836,122280.0,122270.0,1.54439429]
[1760018534721,0.89075359,122280.0,122200.0,0.15523511]
[1760018534922,0.02831,122170.0,122160.0,0.1882258]
[1760018535220,0.0316163,122150.0,122130.0,2.04196]
[1760018535419,0.45289199,122150.0,122130.0,3.54196]
[1760018535624,0.0818405,122140.0,122130.0,3.54196]
[1760018535822,0.8034405,122140.0,122130.0,3.54196]
[1760018536021,0.74991,122140.0,122130.0,2.89488]
[1760018536422,0.7216,122140.0,122130.0,2.89488]
[1760018536721,0.7216,122140.0,122130.0,3.30052]
[1760018537027,0.72167879,122140.0,122130.0,3.3006]
[1760018537228,0.72167879,122140.0,122130.0,2.44768]
[1760018537427,0.72167879,122140.0,122130.0,3.29996]
[1760018537628,0.72167879,122140.0,122130.0,3.30204]
[1760018537817,0.36087879,122140.0,122130.0,2.44968]
[1760018538126,0.3608,122150.0,122130.0,3.3834872]
[1760018538333,0.3608,122150.0,122130.0,2.9834872]
[1760018538722,0.3608,122150.0,122130.0,2.04968]
[1760018538923,0.3608,122140.0,122130.0,2.04968]
[1760018539138,0.3608,122140.0,122130.0,2.90112]
[1760018539426,0.3608,122150.0,122130.0,2.9829672]
[1760018539625,0.3608,122150.0,122140.0,0.4]
[1760018539817,0.3608,122150.0,122140.0,1.25052]
[1760018540218,0.3608,122150.0,122140.0,0.86180572]
[1760018540425,0.3608,122160.0,122140.0,1.71168572]
[1760018540625,0.3608,122160.0,122150.0,0.37996522]
[1760018541030,0.3608,122160.0,122150.0,0.46179902]
[1760018541234,0.3608,122160.0,122150.0,1.71131902]
[1760018541529,0.3608,122170.0,122150.0,1.71131902]
[1760018541728,0.3608,122170.0,122150.0,0.401]
[1760018542029,0.85090232,122160.0,122150.0,0.001]
[1760018542322,1.25090232,122160.0,122150.0,1e-07]
[1760018542528,1.25090232,122160.0,122120.0,2.0428]
[1760018542529,0.1101572,122130.0,122120.0,2.0428]
[1760018542728,0.1101639,122120.0,122110.0,1.5]
[1760018542923,0.1101706,122110.0,122100.0,0.00784202]
[1760018543124,0.4709706,122110.0,122100.0,2.90248202]
[1760018543325,0.4709706,122110.0,122100.0,4.40256202]
[1760018543530,0.4709706,122110.0,122100.0,4.40220202]
[1760018543727,0.38911,122110.0,122100.0,4.78216724]
[1760018544033,0.38911,122110.0,122100.0,5.18192724]
[1760018544251,0.38911,122110.0,122100.0,2.82296522]
[1760018544532,0.3608,122110.0,122100.0,3.67384522]
[1760018544728,0.4426606,122110.0,122100.0,0.77996522]
[1760018544926,0.3608,122110.0,122100.0,2.82308522]
[1760018545323,0.3608,122110.0,122100.0,5.17312522]
[1760018545627,0.3608,122110.0,122100.0,5.17292522]
[1760018546733,0.3608,122110.0,122100.0,4.78491774]
[1760018546926,0.4709644,122120.0,122100.0,2.27996522]
[1760018547228,0.3608,122120.0,122110.0,2.04332]
[1760018547426,0.38911,122120.0,122110.0,0.4]
[1760018547619,0.38911,122120.0,122110.0,2.89184]
[1760018547929,0.3608,122120.0,122110.0,2.5252206]
[1760018548122,0.3608,122140.0,122120.0,0.0818539]
[1760018548332,0.4207263,122150.0,122130.0,0.46181242]
[1760018548630,0.5025601,122150.0,122140.0,1.22788522]
[1760018548830,0.4207263,122150.0,122140.0,0.37996522]
[1760018549026,0.4709438,122150.0,122140.0,1.22764522]
[1760018549428,0.5025601,122150.0,122140.0,3.27112522]
[1760018549933,0.0818474,122130.0,122110.0,0.9426577]
[1760018550132,0.4709572,122130.0,122120.0,2.42344522]
[1760018550326,0.4709572,122130.0,122120.0,3.27008522]
[1760018550531,0.4709572,122130.0,122120.0,0.77996522]
[1760018550834,0.1417869,122110.0,122100.0,0.37996522]
[1760018551028,0.8633869,122110.0,122100.0,0.37996522]
[1760018551233,0.8633869,122110.0,122100.0,1.22940522]
[1760018552128,0.8633869,122110.0,122100.0,3.27248522]
[1760018552333,0.8633869,122110.0,122100.0,3.27200522]
[1760018552533,0.1101773,122100.0,122090.0,1.50010621]
[1760018552728,0.4709773,122100.0,122090.0,1.88007143]
[1760018552923,0.38911,122100.0,122090.0,4.77167143]
[1760018553130,0.4709773,122100.0,122090.0,4.85354543]
[1760018553328,0.4709773,122100.0,122090.0,4.77167143]
[1760018553929,0.4709773,122100.0,122090.0,4.85354543]
[1760018554124,0.4709773,122100.0,122090.0,1.88007143]
[1760018554336,0.4709773,122100.0,122090.0,3.92383143]
[1760018554536,0.4709773,122100.0,122090.0,4.77031143]
[1760018554742,0.4709773,122100.0,122090.0,3.27031143]
[1760018554925,0.4709773,122100.0,122090.0,2.42383143]
[1760018555131,0.4709773,122100.0,122090.0,3.26987143]
[1760018555331,0.4709773,122100.0,122090.0,0.38007143]
[1760018555531,0.4709773,122100.0,122090.0,2.42387143]
[1760018555837,0.4709773,122100.0,122090.0,3.26943143]
[1760018556037,0.4709773,122100.0,122090.0,0.00010621]
[1760018556038,0.8709773,122100.0,122090.0,0.00010621]
[1760018556337,0.4709773,122100.0,122090.0,0.38007143]
[1760018556537,0.4709773,122100.0,122090.0,2.42395143]
[1760018556733,0.4709773,122100.0,122090.0,3.27211143]
[1760018556932,0.38911,122100.0,122090.0,3.35398543]
[1760018557135,0.38911,122100.0,122090.0,3.35346543]
[1760018557335,0.38911,122100.0,122090.0,0.46194543]
[1760018557533,0.4709773,122100.0,122090.0,3.35354543]
[1760018558139,0.38911,122100.0,122090.0,2.50590543]
[1760018558441,0.38911,122100.0,122090.0,3.35322543]
[1760018559135,0.4709712,122110.0,122100.0,0.0818673]
[1760018559136,0.02831,122110.0,122100.0,0.0818673]
[1760018559342,0.38911,122120.0,122110.0,0.0818606]
[1760018559542,0.38911,122130.0,122120.0,0.0818539]
[1760018559840,0.38911,122130.0,122120.0,1.30849912]
[1760018560237,0.02831,122130.0,122120.0,0.46181912]
[1760018560440,0.38911,122140.0,122130.0,0.0818472]
[1760018560641,0.38911,122140.0,122130.0,0.46181242]
[1760018560941,0.38911,122140.0,122130.0,0.86181242]
[1760018560942,0.02831,122140.0,122130.0,0.86181242]
[1760018561138,0.38911,122140.0,122130.0,0.86181242]
[1760018561333,0.38911,122140.0,122130.0,1.70737242]
[1760018561639,0.4207263,122140.0,122130.0,3.75137242]
[1760018561836,0.38911,122140.0,122130.0,3.75137242]
[1760018562033,0.38911,122140.0,122130.0,2.90585242]
[1760018562234,0.4207263,122140.0,122130.0,3.75045242]
[1760018562441,0.4207263,122140.0,122130.0,3.35021242]
[1760018562637,0.4207263,122140.0,122130.0,2.9702472]
[1760018562837,0.4207263,122140.0,122130.0,3.35021242]
[1760018563042,0.4207263,122140.0,122130.0,2.50585242]
[1760018563344,0.4207263,122140.0,122130.0,3.34965242]
[1760018563841,0.4207263,122140.0,122130.0,2.50581242]
[1760018564036,0.3608,122140.0,122130.0,2.90581242]
[1760018564343,0.38911,122150.0,122140.0,0.0818405]
[1760018564545,0.38911,122150.0,122140.0,0.46180572]
[1760018564840,0.02831,122150.0,122140.0,0.46180572]
[1760018565242,0.38733,122160.0,122150.0,0.0818338]
[1760018565444,0.4189463,122160.0,122150.0,3.34775902]
[1760018565632,0.38733,122160.0,122150.0,3.34775902]
[1760018566343,0.4189463,122160.0,122150.0,3.34775902]
[1760018566546,0.4696963,122160.0,122150.0,2.9668338]
[1760018566938,0.43808,122160.0,122150.0,0.0818338]
[1760018567142,0.5199071,122160.0,122150.0,2.88472]
[1760018567341,0.02769,122150.0,122140.0,0.46179902]
[1760018567537,0.38849,122150.0,122140.0,3.34603902]
[1760018567745,0.38849,122150.0,122140.0,2.50567902]
[1760018567946,0.38849,122150.0,122140.0,3.34599902]
[1760018568547,0.38849,122150.0,122140.0,0.46179902]
[1760018568739,0.38849,122150.0,122140.0,3.34567902]
[1760018569444,0.38849,122150.0,122140.0,3.34442717]
[1760018570140,0.02769,122120.0,122110.0,0.4426598]
[1760018570346,0.02769,122130.0,122120.0,0.0818539]
[1760018570534,0.02769,122130.0,122120.0,1.30000727]
[1760018570737,0.38849,122130.0,122120.0,3.34344727]
[1760018571242,0.02769,122130.0,122120.0,3.34344727]
[1760018571443,0.38849,122140.0,122130.0,0.0818472]
[1760018571651,0.38849,122140.0,122130.0,0.46184057]
[1760018572448,0.3608,122140.0,122130.0,2.90564057]
[1760018572744,0.02769,122160.0,122130.0,2.90564057]
[1760018572745,0.02769,122160.0,122150.0,0.0818338]
[1760018572945,0.02769,122160.0,122150.0,0.84182054]
[1760018573146,0.02769,122160.0,122150.0,1.67906054]
[1760018573341,0.38849,122170.0,122150.0,2.07906054]
[1760018573552,0.38849,122170.0,122160.0,0.46182047]
[1760018573746,0.02769,122170.0,122160.0,0.46182047]
[1760018573945,0.38849,122170.0,122160.0,0.46182047]
[1760018574150,0.4201063,122170.0,122160.0,0.46182047]
[1760018574450,0.38849,122170.0,122160.0,2.50558047]
[1760018574649,0.38849,122170.0,122160.0,3.34182047]
[1760018574839,0.38849,122170.0,122160.0,2.57028294]
[1760018575042,0.8708563,122170.0,122160.0,2.9613071]
[1760018575248,0.8201063,122170.0,122160.0,3.34130047]
[1760018575450,0.9019267,122170.0,122160.0,3.34130047]
[1760018575649,0.9019267,122170.0,122160.0,0.46182047]
[1760018575844,0.9526767,122170.0,122160.0,3.34074047]
[1760018576045,0.9526767,122170.0,122160.0,2.1255471]
[1760018576247,0.8201063,122170.0,122160.0,2.50554047]
[1760018576450,0.38849,122170.0,122160.0,3.34026047]
[1760018576753,0.4201063,122170.0,122160.0,3.34026047]
[1760018576953,0.02769,122170.0,122160.0,2.50554047]
[1760018577148,0.0593063,122180.0,122170.0,0.0818204]
[1760018577342,0.38849,122190.0,122180.0,0.0818137]
[1760018577549,0.02769,122190.0,122180.0,0.0818137]
[1760018577748,0.38849,122200.0,122190.0,0.081807]
[1760018577949,0.02769,122210.0,122200.0,0.0818003]
[1760018578163,0.02769,122210.0,122200.0,0.84178704]
[1760018578353,0.02769,122210.0,122200.0,1.67538704]
[1760018578745,0.38849,122220.0,122210.0,0.0817936]
[1760018578955,0.41283594,122220.0,122210.0,2.50538697]
[1760018579252,0.38849,122220.0,122210.0,3.33850697]
[1760018579953,0.38849,122220.0,122210.0,2.50538697]
[1760018580151,0.38849,122220.0,122210.0,3.33814697]
[1760018580354,0.38849,122220.0,122210.0,2.50538697]
[1760018580553,0.38849,122220.0,122210.0,3.33762697]
[1760018580954,0.3608,122220.0,122210.0,3.33762697]
[1760018581154,0.38849,122230.0,122220.0,0.0817869]
[1760018581353,0.38849,122230.0,122220.0,0.46178027]
[1760018581553,0.4702702,122230.0,122220.0,3.33662027]
[1760018581953,0.4702702,122230.0,122190.0,0.3608]
[1760018581954,0.07844,122200.0,122190.0,0.3608]
[1760018582148,0.1095105,122170.0,122160.0,0.00763]
[1760018582349,0.8311105,122170.0,122160.0,0.00763]
[1760018582551,0.74929,122170.0,122160.0,1.22054337]
[1760018582858,0.3608,122170.0,122160.0,1.30237047]
[1760018583055,0.3608,122170.0,122160.0,1.22054337]
[1760018583251,0.4426204,122170.0,122160.0,1.22054337]
[1760018583452,0.4426204,122170.0,122160.0,1.22090337]
[1760018583654,0.4426204,122170.0,122160.0,0.38762337]
[1760018583860,0.3608,122170.0,122160.0,1.70225047]
[1760018584552,0.3608,122180.0,122170.0,0.0894504]
[1760018584846,0.3608,122180.0,122170.0,0.46944377]
[1760018585459,0.3608,122180.0,122170.0,3.34452377]
[1760018585752,0.3608,122180.0,122170.0,0.38762337]
[1760018585953,0.3608,122180.0,122170.0,0.46944377]
[1760018586158,0.3608,122180.0,122130.0,0.0818463]
[1760018586159,0.1095305,122140.0,122100.0,0.34662126]
[1760018586348,0.3608,122120.0,122110.0,0.85016]
[1760018586553,0.3608,122120.0,122110.0,1.23019337]
[1760018587162,0.4426539,122120.0,122110.0,0.37999337]
[1760018587363,0.78849,122120.0,122110.0,2.04324]
[1760018587661,0.8703439,122120.0,122110.0,2.8932]
[1760018588559,0.8703439,122120.0,122110.0,2.8924]
[1760018588755,0.4703439,122120.0,122110.0,2.8924]
[1760018589065,0.4426539,122120.0,122110.0,2.8924]
[1760018589558,0.4722839,122120.0,122110.0,2.04324]
[1760018589759,0.4722839,122120.0,122110.0,2.892]
[1760018589959,0.4426539,122120.0,122110.0,2.892]
[1760018590258,0.3608,122120.0,122110.0,2.9738606]
[1760018590655,0.3608,122120.0,122110.0,2.9729406]
[1760018590860,0.3608,122120.0,122110.0,2.9722606]
[1760018591762,0.3608,122120.0,122110.0,2.9723006]
[1760018592063,0.3608,122120.0,122110.0,2.1251006]
[1760018592261,0.3608,122120.0,122110.0,2.9711406]
[1760018592855,0.3608,122120.0,122110.0,3.35113397]
[1760018593056,0.3608,122120.0,122110.0,2.1251006]
[1760018593262,0.3608,122120.0,122110.0,2.50509397]
[1760018593457,0.3608,122120.0,122110.0,3.35017397]
[1760018594260,0.3608,122120.0,122110.0,2.91100397]
[1760018594557,0.3608,122120.0,122090.0,0.00010621]
[1760018594764,0.3608,122110.0,122100.0,3.35073757]
[1760018595463,0.3608,122110.0,122100.0,0.47130757]
[1760018595658,0.3608,122110.0,122100.0,2.51514757]
[1760018595859,0.3608,122110.0,122100.0,3.35990757]
[1760018596061,0.3608,122110.0,122100.0,0.87130757]
[1760018596253,0.3608,122110.0,122100.0,3.29514094]
[1760018596458,0.3608,122110.0,122100.0,3.75930757]
[1760018596657,0.3608,122120.0,122110.0,0.0913106]
[1760018596853,0.3608,122120.0,122110.0,2.51514397]
[1760018597057,0.3608,122120.0,122110.0,3.35902397]
[1760018597262,0.3608,122120.0,122110.0,2.89693]
[1760018597263,0.4426539,122120.0,122110.0,2.89693]
[1760018597457,0.4426539,122120.0,122110.0,3.35854397]
[1760018597654,0.3608,122120.0,122110.0,3.35854397]
[1760018598059,0.3608,122120.0,122110.0,2.51514397]
[1760018598260,0.4426507,122130.0,122120.0,0.0818539]
[1760018598469,0.3608,122130.0,122120.0,0.47129727]
[1760018598666,0.39043,122140.0,122120.0,0.47129727]
[1760018598667,0.02963,122140.0,122130.0,0.0912972]
[1760018598854,0.3608,122140.0,122130.0,0.47129057]
[1760018599066,0.3608,122140.0,122130.0,1.31349057]
[1760018599260,0.3608,122140.0,122130.0,0.47129057]
[1760018599467,0.3608,122140.0,122130.0,1.31325057]
[1760018599766,0.3608,122150.0,122140.0,0.0818405]
[1760018600063,0.3608,122150.0,122140.0,3.35656387]
[1760018600258,0.3608,122150.0,122140.0,2.9765705]
[1760018600658,0.3608,122150.0,122140.0,2.51516387]
[1760018601062,0.3608,122160.0,122150.0,0.0912838]
[1760018601262,0.1576738,122150.0,122100.0,0.3608]
[1760018601466,0.43664,122130.0,122120.0,0.00945]
[1760018601764,0.8330772,122130.0,122120.0,2.04388]
[1760018602164,0.0818606,122110.0,122100.0,0.06433472]
[1760018602365,0.4426606,122110.0,122100.0,2.9664673]
[1760018602569,0.3608,122110.0,122100.0,2.9664673]
[1760018603063,0.3608,122110.0,122100.0,2.9662273]
[1760018603367,0.3608,122110.0,122100.0,2.46568222]
[1760018603665,0.4426606,122110.0,122100.0,3.30560222]
[1760018604066,0.4426606,122110.0,122100.0,2.9656673]
[1760018604564,0.4426606,122110.0,122100.0,0.0818673]
[1760018604761,0.39043,122110.0,122100.0,2.1257873]
[1760018604963,0.02963,122120.0,122100.0,2.1257873]
[1760018604964,0.3608,122120.0,122110.0,0.0818606]
[1760018605264,0.3608,122130.0,122120.0,0.0913039]
[1760018605469,0.3608,122130.0,122120.0,0.43123882]
[1760018605868,0.3608,122130.0,122120.0,1.66935882]
[1760018606370,0.3608,122130.0,122120.0,2.47519882]
[1760018606563,0.3608,122130.0,122120.0,3.31335882]
[1760018606758,0.28407,122130.0,122120.0,2.87519882]
[1760018606964,0.39043,122160.0,122140.0,0.0818405]
[1760018607157,0.39043,122160.0,122150.0,0.0818338]
[1760018607367,0.3608,122160.0,122150.0,0.42176872]
[1760018607570,0.02963,122170.0,122160.0,0.0818271]
[1760018607768,0.02963,122170.0,122160.0,0.9191871]
[1760018608768,0.1114504,122170.0,122160.0,0.9191871]
[1760018608970,0.4722504,122170.0,122160.0,2.1257071]
[1760018609164,0.4722472,122180.0,122170.0,0.0818204]
[1760018610069,0.39043,122180.0,122170.0,0.9175404]
[1760018610470,0.39043,122180.0,122170.0,0.0818204]
[1760018610768,0.39043,122180.0,122170.0,0.9173004]
[1760018611166,0.39043,122180.0,122170.0,0.0818204]
[1760018611167,0.02963,122180.0,122170.0,0.0818204]
[1760018611371,0.472238,122190.0,122180.0,0.0818137]
[1760018611372,0.02963,122190.0,122180.0,0.0818137]
[1760018611568,0.39043,122190.0,122180.0,0.0818137]
[1760018612072,0.39043,122200.0,122190.0,0.081807]
[1760018612274,0.39043,122200.0,122190.0,0.916607]
[1760018612662,0.39043,122200.0,122190.0,0.081807]
[1760018612867,0.02963,122210.0,122200.0,0.0818003]
[1760018613567,0.02963,122210.0,122200.0,1.25593522]
[1760018614265,0.02963,122210.0,122200.0,3.29925522]
[1760018614567,0.02963,122210.0,122200.0,2.1253603]
[1760018614767,0.02963,122210.0,122200.0,2.9588403]
[1760018614969,0.02963,122210.0,122200.0,2.1253603]
[1760018615172,0.02963,122210.0,122200.0,2.9583603]
[1760018615378,0.39043,122210.0,122200.0,2.9603603]
[1760018616173,0.39043,122210.0,122200.0,2.9600003]
[1760018616371,0.39043,122210.0,122200.0,3.0259313]
[1760018616572,0.39043,122210.0,122200.0,2.1931713]
[1760018616769,0.39043,122210.0,122200.0,3.0251713]
[1760018616974,0.39043,122210.0,122200.0,3.0246513]
[1760018617174,0.9184336,122210.0,122200.0,2.04536]
[1760018617374,0.9184336,122210.0,122200.0,2.9583203]
[1760018618074,0.79043,122210.0,122200.0,2.9581203]
[1760018618264,0.8722236,122210.0,122200.0,2.9581203]
[1760018618471,0.8722236,122210.0,122200.0,2.9561203]
[1760018618672,0.8722236,122210.0,122200.0,2.9571203]
[1760018619077,0.8722236,122210.0,122200.0,2.9561203]
[1760018619271,0.9184336,122210.0,122200.0,0.002]
[1760018619580,0.9184336,122210.0,122200.0,0.6538]
[1760018619969,0.9184336,122210.0,122200.0,0.0838003]
[1760018620182,0.9184336,122210.0,122200.0,0.9132403]
[1760018620373,0.39043,122210.0,122200.0,0.0838003]
[1760018620678,0.39043,122210.0,122200.0,0.9128403]
[1760018620877,0.39043,122210.0,122200.0,0.0838003]
[1760018621082,0.4722236,122210.0,122200.0,0.9131203]
[1760018621474,0.39043,122210.0,122200.0,0.9128803]
[1760018622293,0.02963,122220.0,122210.0,0.0817936]
[1760018622581,0.02963,122220.0,122210.0,0.42172852]
[1760018622775,0.02963,122220.0,122210.0,0.82172852]
[1760018622776,0.3608,122220.0,122210.0,0.82172852]
[1760018622971,0.3608,122230.0,122220.0,0.0817869]
[1760018623174,0.39043,122240.0,122230.0,0.0817802]
[1760018623376,0.1623836,122210.0,122200.0,0.002]
[1760018623572,0.90749744,122210.0,122200.0,0.002]
[1760018623874,0.80219,122210.0,122200.0,0.9125203]
[1760018624081,0.3608,122220.0,122210.0,0.0817936]
[1760018624274,0.39104,122220.0,122210.0,0.0817936]
[1760018624579,0.39104,122220.0,122210.0,2.1247936]
[1760018624778,0.4729436,122230.0,122220.0,0.0817869]
[1760018624972,0.4729436,122230.0,122220.0,0.97649506]
[1760018625276,0.39116,122230.0,122220.0,0.0817869]
[1760018625471,0.4729402,122230.0,122220.0,0.9099469]
[1760018625672,0.39116,122230.0,122220.0,0.9099469]
[1760018625871,0.39116,122230.0,122220.0,0.0817869]
[1760018626071,0.39116,122230.0,122220.0,0.9095069]
[1760018626072,0.4729402,122230.0,122220.0,0.9095069]
[1760018626271,0.4729402,122230.0,122220.0,0.0817869]
[1760018626684,0.4729402,122230.0,122220.0,0.9090269]
[1760018626980,0.3608,122230.0,122220.0,0.42172182]
[1760018627278,0.3608,122230.0,122220.0,3.29152182]
[1760018627583,0.3608,122240.0,122230.0,0.0817802]
[1760018627878,0.3608,122240.0,122230.0,0.42171512]
[1760018628073,0.39116,122250.0,122240.0,0.0817735]
[1760018628477,0.39116,122250.0,122240.0,0.9080135]
[1760018628680,0.39116,122250.0,122240.0,1.64794842]
[1760018628982,0.39104,122260.0,122240.0,0.82170512]
[1760018629277,0.39104,122250.0,122240.0,0.0817735]
[1760018629484,0.39104,122250.0,122240.0,0.9073735]
[1760018629881,0.39104,122250.0,122240.0,2.1245335]
[1760018630071,0.39104,122250.0,122240.0,2.9508935]
[1760018630275,0.39104,122250.0,122240.0,0.0827735]
[1760018630479,0.44134,122250.0,122240.0,2.1254935]
[1760018630782,0.44134,122250.0,122240.0,2.9503735]
[1760018631176,0.08054,122200.0,122190.0,0.37799]
[1760018631381,0.3608,122200.0,122190.0,0.01719]
[1760018631679,0.39104,122230.0,122210.0,0.01719]
[1760018631884,0.3608,122230.0,122220.0,2.9695769]
[1760018632180,0.3608,122230.0,122220.0,2.12663908]
[1760018632384,0.3608,122230.0,122220.0,2.95455908]
[1760018632681,0.39104,122230.0,122220.0,0.01719]
[1760018632882,0.39104,122230.0,122220.0,2.05975]
[1760018633080,0.3608,122230.0,122220.0,2.8766569]